fUSD/lending_fUSD_20260407
["ID","MTS","AMOUNT","RATE_DAILY","PERIOD"]
[419975256,1775579439864,-436.48877466,0.00013151,2]
[419975257,1775579439874,-1538.0,0.00013151,2]
[419975258,1775579439884,-1538.0,0.00013151,2]
[419975260,1775579439893,-1538.0,0.00013151,2]
[419975262,1775579439902,-1538.0,0.00013151,2]
[419975264,1775579439912,-1538.0,0.00013151,2]
[419975266,1775579439922,-1538.0,0.00013151,2]
[419975268,1775579439932,-1538.0,0.00013151,2]
[419975270,1775579439943,-1538.0,0.00013151,2]
[419975272,1775579439953,-1538.0,0.00013151,2]
[419975274,1775579439962,-1538.0,0.00013151,2]
[419975276,1775579439973,-1538.0,0.00013151,2]
[419975278,1775579439982,-1538.0,0.00013151,2]
[419975280,1775579439991,-1538.0,0.00013151,2]
[419975282,1775579440002,-1553.30229004,0.00013151,2]
[419975284,1775579440012,-150.0,0.00013151,2]
[419975286,1775579440022,-150.0,0.00013151,2]
[419975288,1775579440032,-200.0,0.00013151,2]
[419975290,1775579440041,-150.0,0.00013166,2]
[419975292,1775579440051,-1725.0,0.0001317,2]
[419975294,1775579440060,-150.0,0.00013174,2]
[419975296,1775579440069,-6459.82985621,0.00013185,2]
[419975298,1775579440078,-500.0,0.0001319,2]
[419975300,1775579440087,-325.07,0.00013199,2]
[419975302,1775579440096,-150.0,0.000132,2]
[419975303,1775579440105,-150.0,0.000132,2]
[419975305,1775579440115,-150.0,0.00013242,2]
[419975307,1775579440123,-150.0,0.00013242,2]
[419975310,1775579440134,-322.13008296,0.00013246,2]
[419975312,1775579440144,-500.0,0.00013247,2]
[419975314,1775579440155,-500.0,0.00013247,2]
[419975316,1775579440165,-500.0,0.00013247,2]
[419975318,1775579440175,-258.35962106,0.00013247,2]
[419975320,1775579440184,-249.61,0.00013247,2]
[419975322,1775579440195,-500.0,0.00013247,2]
[419975324,1775579440204,-150.0,0.00013247,2]
[419975326,1775579440214,-500.0,0.00013247,2]
[419975328,1775579440224,-150.0,0.00013247,2]
[419975330,1775579440234,-500.0,0.00013247,2]
[419975332,1775579440243,-150.0,0.00013247,2]
[419975334,1775579440253,-500.0,0.00013247,2]
[419975336,1775579440263,-150.7184852,0.00013247,2]
[419975338,1775579440273,-500.0,0.00013247,2]
[419975340,1775579440283,-150.0,0.00013247,2]
[419975342,1775579440293,-500.0,0.00013247,2]
[419975344,1775579440302,-181.70252141,0.00013247,2]
[419975345,1775579440311,-500.0,0.00013247,2]
[419975347,1775579440321,-500.0,0.00013247,2]
[419975349,1775579440331,-500.0,0.00013247,2]
[419975352,1775579440341,-500.0,0.00013247,2]
[419975353,1775579440351,-594.20670319,0.00013247,2]
[419975355,1775579440361,-500.0,0.00013247,2]
[419975357,1775579440371,-500.0,0.00013247,2]
[419975359,1775579440380,-500.0,0.00013247,2]
[419975361,1775579440390,-500.0,0.00013247,2]
[419975363,1775579440400,-500.0,0.00013247,2]
[419975365,1775579440410,-500.0,0.00013247,2]
[419975368,1775579440420,-500.0,0.00013247,2]
[419975370,1775579440430,-500.0,0.00013247,2]
[419975372,1775579440441,-500.0,0.00013247,2]
[419975374,1775579440450,-500.0,0.00013247,2]
[419975376,1775579440459,-500.0,0.00013247,2]
[419975377,1775579440469,-338.64365037,0.00013247,2]
[419975379,1775579440480,-500.0,0.00013247,2]
[419975382,1775579440490,-500.0,0.00013247,2]
[419975384,1775579440500,-500.0,0.00013247,2]
[419975386,1775579440510,-385.20384257,0.00013247,2]
[419975388,1775579440519,-337.97015847,0.00013247,2]
[419975389,1775579440529,-397.72162059,0.00013247,2]
[419975392,1775579440539,-266.0,0.0001326,2]
[419975394,1775579440549,-500.0,0.00013263,2]
[419975396,1775579440560,-165.41506208,0.00013263,2]
[419975398,1775579440570,-500.0,0.00013263,2]
[419975400,1775579440580,-500.0,0.00013263,2]
[419975402,1775579440590,-500.0,0.00013263,2]
[419975404,1775579440600,-150.56006719,0.00013263,2]
[419975406,1775579440609,-500.0,0.00013263,2]
[419975408,1775579440619,-150.1380317,0.00013263,2]
[419975410,1775579440629,-571.50758087,0.00013263,2]
[419975412,1775579440638,-1541.0,0.00013278,2]
[419975414,1775579440647,-1120.0,0.00013304,2]
[419975416,1775579440656,-150.0,0.00013307,2]
[419975418,1775579440665,-150.0,0.00013318,2]
[419975419,1775579440674,-150.0,0.00013325,2]
[419975421,1775579440683,-150.0,0.00013325,2]
[419975423,1775579440693,-1020.0,0.00013331,2]
[419975425,1775579440702,-150.0,0.00013356,2]
[419975427,1775579440712,-1837.0,0.00013357,2]
[419975429,1775579440722,-150.0,0.00013394,2]
[419975432,1775579440731,-1000.0,0.00013421,2]
[419975434,1775579440740,-1000.0,0.00013421,2]
[419975436,1775579440750,-503.19697935,0.00013421,2]
[419975438,1775579440760,-659.88642084,0.00013421,2]
[419975439,1775579440770,-150.0,0.00013425,2]
[419975442,1775579440779,-150.0,0.00013425,2]
[419975444,1775579440789,-160.0,0.00013426,2]
[419975446,1775579440799,-279.231945,0.00013426,2]
[419975448,1775579440809,-398.463891,0.00013426,2]
[419975450,1775579440818,-160.0,0.00013426,2]
[419975452,1775579440828,-458.29285,0.00013426,2]
[419975454,1775579440838,-756.5857,0.00013426,2]
[419975455,1775579440847,-160.0,0.00013426,2]
[419975458,1775579440856,-573.190187,0.00013426,2]
[419975460,1775579440866,-986.380375,0.00013426,2]
[419975462,1775579440876,-160.0,0.00013426,2]
[419975464,1775579440885,-1259.959387,0.00013426,2]
[419975465,1775579440895,-2359.918775,0.00013426,2]
[419975467,1775579440905,-325.67572742,0.00013441,2]
[419975469,1775579440914,-150.0,0.0001345,2]
[419975471,1775579440924,-150.0,0.0001345,2]
[419975473,1775579440934,-500.0,0.00013464,2]
[419975475,1775579440943,-150.0,0.0001347,2]
[419975477,1775579440952,-150.0,0.0001347,2]
[419975480,1775579440962,-150.0,0.00013503,2]
[419975482,1775579440973,-345.66938645,0.00013506,2]
[419975484,1775579440983,-1000.0,0.00013521,2]
[419975486,1775579440993,-249.61,0.00013521,2]
[419975488,1775579441002,-6459.82985621,0.00013525,2]
[419975490,1775579441012,-500.0,0.00013533,2]
[419975492,1775579441022,-3147.2730272,0.00013537,2]
[419975494,1775579441031,-150.0,0.00013546,2]
[419975496,1775579441041,-150.0,0.00013574,2]
[419975498,1775579441051,-150.0,0.00013574,2]
[419975500,1775579441061,-150.0,0.00013623,2]
[419975502,1775579441072,-199.90943792,0.00013673,2]
[419975504,1775579441081,-500.0,0.00013673,2]
[419975506,1775579441091,-500.0,0.00013673,2]
[419975508,1775579441100,-500.0,0.00013673,2]
[419975510,1775579441110,-500.0,0.00013673,2]
[419975512,1775579441119,-500.0,0.00013673,2]
[419975514,1775579441129,-322.13008296,0.00013689,2]
[419975515,1775579441139,-500.0,0.00013698,2]
[419975517,1775579441148,-500.0,0.00013698,2]
[419975520,1775579441158,-500.0,0.00013698,2]
[419975522,1775579441168,-500.0,0.00013698,2]
[419975523,1775579441177,-500.0,0.00013698,2]
[419975525,1775579441187,-500.0,0.00013698,2]
[419975527,1775579441196,-246.93074398,0.00013698,2]
[419975529,1775579441206,-500.0,0.00013698,2]
[419975531,1775579441216,-500.0,0.00013698,2]
[419975534,1775579441227,-500.0,0.00013698,2]
[419975535,1775579441237,-537.2,0.00013698,2]
[419975537,1775579441247,-806.76,0.00013698,2]
[419975540,1775579441258,-806.76,0.00013698,2]
[419975542,1775579441267,-806.76,0.00013698,2]
[419975543,1775579441276,-806.76,0.00013698,2]
[419975545,1775579441285,-806.76,0.00013698,2]
[419975547,1775579441295,-806.76,0.00013698,2]
[419975549,1775579441305,-806.76,0.00013698,2]
[419975551,1775579441315,-806.76,0.00013698,2]
[419975553,1775579441325,-806.76,0.00013698,2]
[419975555,1775579441335,-806.76,0.00013698,2]
[419975557,1775579441345,-500.0,0.00013698,2]
[419975559,1775579441355,-500.0,0.00013698,2]
[419975561,1775579441365,-500.0,0.00013698,2]
[419975563,1775579441374,-500.0,0.00013698,2]
[419975565,1775579441384,-500.0,0.00013698,2]
[419975567,1775579441393,-500.0,0.00013698,2]
[419975569,1775579441403,-500.0,0.00013698,2]
[419975571,1775579441414,-481.06713155,0.00013698,2]
[419975573,1775579441424,-500.0,0.00013698,2]
[419975575,1775579441434,-300.73076034,0.00013698,2]
[419975577,1775579441444,-500.0,0.00013698,2]
[419975579,1775579441456,-500.0,0.00013698,2]
[419975581,1775579441465,-500.0,0.00013698,2]
[419975583,1775579441476,-500.0,0.00013698,2]
[419975585,1775579441485,-500.0,0.00013698,2]
[419975587,1775579441495,-500.0,0.00013698,2]
[419975589,1775579441504,-500.0,0.00013698,2]
[419975591,1775579441514,-500.0,0.00013698,2]
[419975593,1775579441524,-500.0,0.00013698,2]
[419975595,1775579441533,-500.0,0.00013698,2]
[419975597,1775579441543,-500.0,0.00013698,2]
[419975599,1775579441553,-500.0,0.00013698,2]
[419975601,1775579441563,-500.0,0.00013698,2]
[419975603,1775579441572,-500.0,0.00013698,2]
[419975605,1775579441582,-500.0,0.00013698,2]
[419975607,1775579441592,-500.0,0.00013698,2]
[419975610,1775579441602,-787.31,0.00013698,2]
[419975612,1775579441611,-787.31,0.00013698,2]
[419975614,1775579441621,-787.31,0.00013698,2]
[419975615,1775579441631,-787.31,0.00013698,2]
[419975617,1775579441640,-787.31,0.00013698,2]
[419975619,1775579441650,-787.31,0.00013698,2]
[419975621,1775579441659,-787.31,0.00013698,2]
[419975623,1775579441669,-787.31,0.00013698,2]
[419975625,1775579441679,-787.31,0.00013698,2]
[419975627,1775579441689,-787.31,0.00013698,2]
[419975629,1775579441699,-787.31,0.00013698,2]
[419975631,1775579441709,-787.31,0.00013698,2]
[419975633,1775579441718,-787.31,0.00013698,2]
[419975635,1775579441727,-787.31,0.00013698,2]
[419975637,1775579441737,-787.31,0.00013698,2]
[419975639,1775579441747,-787.31,0.00013698,2]
[419975641,1775579441758,-500.0,0.00013698,2]
[419975643,1775579441767,-500.0,0.00013698,2]
[419975645,1775579441777,-390.77484076,0.00013698,2]
[419975647,1775579441787,-500.0,0.00013698,2]
[419975649,1775579441796,-500.0,0.00013698,2]
[419975651,1775579441807,-500.0,0.00013698,2]
[419975653,1775579441816,-500.0,0.00013698,2]
[419975655,1775579441826,-500.0,0.00013698,2]
[419975657,1775579441835,-500.0,0.00013698,2]
[419975659,1775579441844,-500.0,0.00013698,2]
[419975661,1775579441854,-420.19790691,0.00013698,2]
[419975663,1775579441863,-506.3,0.00013698,2]
[419975665,1775579441873,-506.3,0.00013698,2]
[419975667,1775579441885,-506.3,0.00013698,2]
[419975669,1775579441895,-506.3,0.00013698,2]
[419975671,1775579441905,-506.3,0.00013698,2]
[419975673,1775579441915,-506.3,0.00013698,2]
[419975675,1775579441924,-506.3,0.00013698,2]
[419975677,1775579441934,-506.3,0.00013698,2]
[419975679,1775579441943,-506.3,0.00013698,2]
[419975681,1775579441952,-506.3,0.00013698,2]
[419975683,1775579441962,-506.3,0.00013698,2]
[419975685,1775579441971,-506.3,0.00013698,2]
[419975687,1775579441981,-506.3,0.00013698,2]
[419975689,1775579441990,-506.3,0.00013698,2]
[419975691,1775579442000,-506.3,0.00013698,2]
[419975693,1775579442009,-506.3,0.00013698,2]
[419975695,1775579442020,-500.0,0.00013698,2]
[419975697,1775579442030,-500.0,0.00013698,2]
[419975699,1775579442039,-500.0,0.00013698,2]
[419975700,1775579442048,-500.0,0.00013698,2]
[419975702,1775579442058,-500.0,0.00013698,2]
[419975704,1775579442068,-500.0,0.00013698,2]
[419975706,1775579442077,-500.0,0.00013698,2]
[419975708,1775579442087,-500.0,0.00013698,2]
[419975710,1775579442097,-500.0,0.00013698,2]
[419975712,1775579442106,-500.0,0.00013698,2]
[419975714,1775579442115,-500.0,0.00013698,2]
[419975758,1775579442458,-500.0,0.00013698,2]
[419975761,1775579442468,-500.0,0.00013698,2]
[419975765,1775579442478,-500.0,0.00013698,2]
[419975769,1775579442489,-500.0,0.00013698,2]
[419975772,1775579442498,-500.0,0.00013698,2]
[419975775,1775579442508,-500.0,0.00013698,2]
[419975777,1775579442518,-391.39016199,0.00013698,2]
[419975782,1775579442527,-568.05,0.00013698,2]
[419975784,1775579442538,-568.05,0.00013698,2]
[419975788,1775579442548,-568.05,0.00013698,2]
[419975792,1775579442558,-568.05,0.00013698,2]
[419975795,1775579442568,-568.05,0.00013698,2]
[419975796,1775579442578,-568.05,0.00013698,2]
[419975798,1775579442588,-568.05,0.00013698,2]
[419975800,1775579442597,-568.05,0.00013698,2]
[419975802,1775579442607,-568.05,0.00013698,2]
[419975804,1775579442616,-568.05,0.00013698,2]
[419975806,1775579442625,-873.03,0.00013698,2]
[419975809,1775579442635,-873.03,0.00013698,2]
[419975812,1775579442645,-873.03,0.00013698,2]
[419975815,1775579442655,-873.03,0.00013698,2]
[419975816,1775579442664,-873.03,0.00013698,2]
[419975817,1775579442674,-873.03,0.00013698,2]
[419975818,1775579442683,-873.03,0.00013698,2]
[419975819,1775579442694,-873.03,0.00013698,2]
[419975820,1775579442703,-873.03,0.00013698,2]
[419975821,1775579442712,-873.03,0.00013698,2]
[419975822,1775579442721,-873.03,0.00013698,2]
[419975823,1775579442731,-873.03,0.00013698,2]
[419975824,1775579442740,-873.03,0.00013698,2]
[419975825,1775579442749,-873.03,0.00013698,2]
[419975826,1775579442758,-873.03,0.00013698,2]
[419975827,1775579442767,-873.03,0.00013698,2]
[419975828,1775579442777,-155.74758483,0.00013699,2]
[419975829,1775579442787,-160.67211933,0.00013699,2]
[419975830,1775579442797,-180.49671897,0.00013699,2]
[419975831,1775579442807,-150.0,0.00013699,2]
[419975832,1775579442816,-150.0,0.00013699,2]
[419975834,1775579442826,-189.27920747,0.00013699,2]
[419975836,1775579442835,-150.60277619,0.00013699,2]
[419975837,1775579442844,-150.0,0.00013699,2]
[419975839,1775579442853,-150.0,0.00013699,2]
[419975841,1775579442862,-267.10584669,0.00013699,2]
[419975843,1775579442872,-150.0,0.00013699,2]
[419975845,1775579442881,-150.0,0.00013699,2]
[419975847,1775579442890,-180.0,0.00013699,2]
[419975849,1775579442900,-166.66,0.00013699,2]
[419975852,1775579442910,-1660.83,0.00013699,2]
[419975853,1775579442919,-500.0,0.00013699,2]
[419975856,1775579442929,-308.46665477,0.00013699,2]
[419975857,1775579442938,-500.62488196,0.00013699,2]
[419975859,1775579442948,-184.18,0.00013699,2]
[419975861,1775579442957,-806.76,0.00013699,2]
[419975863,1775579442966,-500.0,0.00013699,2]
[419975865,1775579442977,-500.0,0.00013699,2]
[419975867,1775579442986,-787.31,0.00013699,2]
[419975869,1775579442996,-787.31,0.00013699,2]
[419975871,1775579443006,-500.0,0.00013699,2]
[419975873,1775579443016,-500.0,0.00013699,2]
[419975876,1775579443027,-500.0,0.00013699,2]
[419975878,1775579443038,-500.0,0.00013699,2]
[419975880,1775579443049,-500.0,0.00013699,2]
[419975882,1775579443059,-500.0,0.00013699,2]
[419975884,1775579443069,-500.0,0.00013699,2]
[419975886,1775579443079,-305.85122809,0.00013699,2]
[419975888,1775579443089,-873.03,0.00013699,2]
[419975890,1775579443099,-873.03,0.00013699,2]
[419975892,1775579443109,-342831.7,0.000137,2]
[419975894,1775579443119,-160.0,0.00013701,7]
[419975896,1775579443129,-2242.84036,0.00013701,7]
[419975897,1775579443139,-4325.680721,0.00013701,7]
[419975899,1775579443149,-155.26329613,0.00013701,2]
[419975902,1775579443160,-2000.0,0.00013709,2]
[419975903,1775579443170,-500.0,0.00013738,2]
[419975906,1775579443180,-160.0,0.00013787,2]
[419975908,1775579443191,-1697.02516,0.00013787,2]
[419975910,1775579443201,-3234.050321,0.00013787,2]
[419975911,1775579443211,-249.61,0.00013795,2]
[419975913,1775579443222,-985.75,0.00013814,2]
[419975915,1775579443231,-166.66,0.00013836,2]
[419975917,1775579443242,-176.77,0.00013853,2]
[419975919,1775579443252,-6459.82985621,0.00013864,2]
[419975921,1775579443263,-10576.05342223,0.00013864,2]
[419975923,1775579443272,-255.0,0.000139,2]
[419975925,1775579443283,-1500.0,0.00013968,2]
[419975927,1775579443293,-1500.0,0.00013968,2]
[419975928,1775579443303,-300.0,0.00013969,2]
[419975930,1775579443314,-300.0,0.00013969,2]
[419975932,1775579443324,-300.0,0.00013969,2]
[419975934,1775579443334,-356.43990232,0.00013969,2]
[419975936,1775579443344,-150.0,0.00013969,2]
[419975938,1775579443355,-200.0,0.00013969,2]
[419975940,1775579443366,-250.0,0.00013969,2]
[419975942,1775579443377,-205.00212077,0.00013969,2]
[419975944,1775579443388,-5000.0,0.00013969,2]
[419975946,1775579443398,-150.0,0.00013973,2]
[419975948,1775579443409,-150.0,0.00013973,2]
[419975950,1775579443420,-166.66,0.00013973,2]
[419975952,1775579443431,-193.0,0.0001398,2]
[419975954,1775579443442,-5000.0,0.0001398,2]
[419975956,1775579443452,-345.66938645,0.00013985,2]
[419975958,1775579443463,-500.0,0.00014012,2]
[419975960,1775579443474,-250.0,0.00014039,2]
[419975962,1775579443485,-394.0,0.00014039,2]
[419975964,1775579443495,-391.29868191,0.00014068,2]
[419975966,1775579443506,-249.61,0.00014069,2]
[419975968,1775579443516,-1680.0,0.00014078,2]
[419975970,1775579443526,-300.0,0.00014079,2]
[419975972,1775579443537,-2500.0,0.00014079,2]
[419975974,1775579443547,-2500.0,0.00014079,2]
[419975976,1775579443558,-250.0,0.00014079,2]
[419975978,1775579443568,-2500.0,0.0001408,2]
[419975980,1775579443579,-2500.0,0.0001408,2]
[419975982,1775579443589,-2500.0,0.0001408,2]
[419975984,1775579443600,-500.0,0.0001408,2]
[419975986,1775579443611,-500.0,0.0001408,2]
[419975988,1775579443621,-500.0,0.0001408,2]
[419975990,1775579443630,-500.0,0.0001408,2]
[419975992,1775579443641,-227.17019422,0.0001408,2]
[419975994,1775579443651,-232.00571695,0.0001408,2]
[419975996,1775579443662,-1000.0,0.00014081,2]
[419975998,1775579443672,-700.0,0.00014082,2]
[419976000,1775579443682,-1600.0,0.00014082,2]
[419976002,1775579443692,-985.75,0.00014088,2]
[419976004,1775579443702,-1600.0,0.00014093,2]
[419976006,1775579443714,-571.156252,0.00014097,7]
[419976008,1775579443724,-624.944795,0.00014097,7]
[419976010,1775579443734,-1172.434475,0.00014097,2]
[419976012,1775579443744,-150.0,0.000141,2]
[419976014,1775579443754,-166.66,0.0001411,2]
[419976016,1775579443764,-322.13008296,0.00014131,2]
[419976018,1775579443773,-160.0,0.00014161,2]
[419976020,1775579443783,-501.0,0.00014162,2]
[419976022,1775579443793,-6459.82985621,0.00014203,2]
[419976024,1775579443803,-10576.05342223,0.00014203,2]
[419976025,1775579443813,-1000.0,0.00014221,2]
[419976027,1775579443823,-500.0,0.00014221,2]
[419976029,1775579443834,-1000.0,0.00014221,2]
[419976031,1775579443844,-1000.0,0.00014221,2]
[419976033,1775579443854,-166.66,0.00014247,2]
[419976035,1775579443864,-500.0,0.00014247,2]
[419976037,1775579443874,-23010.3303587,0.00014259,2]
[419976039,1775579443884,-500.0,0.00014286,2]
[419976041,1775579443895,-280.66978939,0.00014301,2]
[419976043,1775579443906,-1154.85606599,0.00014301,2]
[419976045,1775579443918,-249.66,0.00014343,2]
[419976047,1775579443928,-500.0,0.00014356,2]
[419976049,1775579443938,-985.75,0.00014361,2]
[419976051,1775579443950,-325.07,0.00014366,2]
[419976054,1775579443961,-166.66,0.00014384,2]
[419976055,1775579443971,-3058.418673,0.00014386,7]
[419976057,1775579443981,-1573.0,0.000144,2]
[419976059,1775579443991,-1000.0,0.00014422,2]
[419976061,1775579444001,-345.66938645,0.00014463,2]
[419976064,1775579444012,-351.0,0.00014467,2]
[419976066,1775579444022,-2314.125219,0.00014476,2]
[419976067,1775579444031,-506.3,0.00014482,2]
[419976069,1775579444040,-9999.99,0.00014504,2]
[419976071,1775579444050,-999.99,0.00014504,2]
[419976073,1775579444060,-150.99,0.00014504,2]
[419976075,1775579444071,-9572.89,0.00014504,2]
[419976077,1775579444081,-9999.99,0.00014504,2]
[419976079,1775579444091,-299.99,0.00014504,2]
[419976081,1775579444101,-3209.4,0.00014504,2]
[419976083,1775579444110,-1235.18214925,0.00014516,2]
[419976085,1775579444120,-200.0,0.00014516,2]
[419976087,1775579444130,-623.58710448,0.00014516,2]
[419976089,1775579444139,-500.0,0.00014516,2]
[419976091,1775579444149,-8260.13072239,0.00014516,2]
[419976093,1775579444158,-743.50770149,0.00014516,2]
[419976095,1775579444167,-174.61919141,0.00014516,2]
[419976097,1775579444177,-151.0,0.00014516,2]
[419976099,1775579444186,-599.60298507,0.00014516,2]
[419976101,1775579444196,-411.57624402,0.00014516,2]
[419976103,1775579444206,-2000.0,0.00014516,2]
[419976105,1775579444215,-2000.0,0.00014516,2]
[419976107,1775579444225,-785.92,0.00014531,2]
[419976109,1775579444235,-6459.82985621,0.00014543,2]
[419976111,1775579444244,-10576.05342223,0.00014543,2]
[419976113,1775579444254,-500.0,0.0001456,2]
[419976115,1775579444264,-500.0,0.00014571,2]
[419976117,1775579444274,-4638.35391231,0.00014571,2]
[419976119,1775579444284,-151.0,0.00014571,2]
[419976121,1775579444293,-322.13008296,0.00014573,2]
[419976123,1775579444301,-500.0,0.00014626,2]
[419976125,1775579444311,-151.0,0.00014626,2]
[419976127,1775579444322,-1500.0,0.00014629,2]
[419976129,1775579444331,-455.86,0.00014635,2]
[419976131,1775579444341,-500.0,0.00014681,2]
[419976133,1775579444351,-151.0,0.00014681,2]
[419976135,1775579444362,-245.1,0.00014689,2]
[419976137,1775579444372,-500.0,0.00014736,2]
[419976139,1775579444382,-151.0,0.00014736,2]
[419976141,1775579444392,-245.11,0.00014768,2]
[419976142,1775579444401,-1500.0,0.00014768,2]
[419976143,1775579444410,-1500.0,0.00014768,2]
[419976144,1775579444420,-1500.0,0.00014768,2]
[419976146,1775579444429,-2000.0,0.00014772,2]
[419976147,1775579444440,-250.0,0.00014795,2]
[419976148,1775579444450,-193.96292451,0.00014795,2]
[419976149,1775579444460,-163.4,0.00014798,2]
[419976150,1775579444469,-785.92,0.00014805,2]
[419976151,1775579444479,-500.0,0.00014834,2]
[419976152,1775579444489,-6459.82985621,0.00014882,2]
[419976153,1775579444500,-10576.05342223,0.00014882,2]
[419976154,1775579444512,-345.66938645,0.00014942,2]
[419976155,1775579444521,-806.76,0.00014951,2]
[419976156,1775579444531,-500.0,0.00014951,2]
[419976157,1775579444541,-150.0,0.00014952,2]
[419976158,1775579444551,-150.0,0.00014952,2]
[419976159,1775579444561,-150.0,0.00014952,2]
[419976160,1775579444571,-1563.0514107,0.00014955,2]
[419976161,1775579444581,-935.0,0.00015,2]
[419976162,1775579444592,-322.13008296,0.00015015,2]
[419976163,1775579444601,-325.07,0.00015033,2]
[419976164,1775579444611,-2812.0,0.0001504,2]
[419976165,1775579444621,-162.0,0.0001504,2]
[419976166,1775579444631,-2812.0,0.0001504,2]
[419976167,1775579444641,-500.0,0.00015041,2]
[419976168,1775579444651,-787.31,0.00015041,2]
[419976169,1775579444661,-873.03,0.00015041,2]
[419976170,1775579444671,-1280.88388878,0.00015064,2]
[419976171,1775579444680,-854.56470337,0.00015064,2]
[419976172,1775579444691,-181.08010149,0.00015064,2]
[419976173,1775579444701,-194.83183622,0.00015064,2]
[419976174,1775579444710,-2500.0,0.00015064,2]
[419976175,1775579444720,-500.0,0.00015064,2]
[419976176,1775579444729,-493.54914906,0.00015068,2]
[419976177,1775579444738,-209.92,0.00015079,2]
[419976178,1775579444747,-433.0,0.00015091,2]
[419976179,1775579444758,-500.0,0.00015108,2]
[419976180,1775579444768,-152.09808365,0.00015173,2]
[419976181,1775579444779,-2000.0,0.00015177,2]
[419976182,1775579444789,-342831.7,0.000152,2]
[419976183,1775579444798,-351.0,0.00015202,2]
[419976184,1775579444808,-351.0,0.00015202,2]
[419976185,1775579444818,-10000.0,0.00015205,2]
[419976186,1775579444828,-6459.82985621,0.00015221,2]
[419976187,1775579444838,-10576.05342223,0.00015221,2]
[419976188,1775579444848,-501.0,0.00015224,3]
[419976189,1775579444858,-2000.0,0.00015233,2]
[419976190,1775579444868,-176.77,0.00015239,2]
[419976191,1775579444877,-1000.0,0.00015271,2]
[419976192,1775579444887,-170.33628613,0.0001528,2]
[419976193,1775579444896,-666.0,0.00015299,2]
[419976194,1775579444906,-500.0,0.00015299,2]
[419976195,1775579444914,-517.21055633,0.00015299,2]
[419976196,1775579444924,-787.31,0.00015299,2]
[419976197,1775579444934,-787.31,0.00015299,2]
[419976198,1775579444944,-787.31,0.00015299,2]
[419976199,1775579444954,-787.31,0.00015299,2]
[419976200,1775579444963,-787.34692703,0.00015299,2]
[419976201,1775579444974,-873.03,0.00015299,2]
[419976202,1775579444984,-873.03,0.00015299,2]
[419976204,1775579444994,-873.03,0.00015299,2]
[419976206,1775579445004,-873.03,0.00015299,2]
[419976208,1775579445013,-873.22214758,0.00015299,2]
[419976210,1775579445024,-166.5092,0.000153,2]
[419976212,1775579445035,-150.0,0.00015305,2]
[419976213,1775579445044,-7242.19,0.0001531,2]
[419976215,1775579445054,-6433.56,0.0001531,2]
[419976217,1775579445063,-1264.0,0.00015316,2]
[419976220,1775579445079,-948.445,0.00015316,2]
[419976222,1775579445089,-1217.0,0.00015316,2]
[419976223,1775579445098,-622.0,0.00015316,2]
[419976225,1775579445108,-3524.0,0.00015316,2]
[419976227,1775579445117,-2000.0,0.00015316,2]
[419976229,1775579445127,-1008.06532933,0.00015316,2]